[Event "Titled Tuesday Blitz September 28 2021"]
[White "Quparadze, Giga"]
[Black "Smirnov, Pavel"]
[WhiteFideId "13602250"]
[BlackFideId "4123425"]
[WhiteElo "2658"]
[BlackElo "2563"]
[Result "1-0"]
[Round "04"]
[TimeControl "180+1"]
[Date "2021.09.28"]
[WhiteClock "0:01:52"]
[BlackClock "0:00:53"]

1. e4 {[%clk 0:03:00]}  e5 {[%clk 0:02:09]} 2. Nf3 {[%clk 0:02:58]}  Nc6 {[%clk 0:02:09]} 3. Bb5 {[%clk 0:02:57]}  a6 {[%clk 0:02:08]} 4. Ba4 {[%clk 0:02:57]}  Nf6 {[%clk 0:02:08]} 5. d3 {[%clk 0:02:55]}  d6 {[%clk 0:02:06]} 6. c3 {[%clk 0:02:55]}  Be7 {[%clk 0:02:07]} 7. O-O {[%clk 0:02:54]}  O-O {[%clk 0:02:07]} 8. Re1 {[%clk 0:02:55]}  b5 {[%clk 0:02:07]} 9. Bc2 {[%clk 0:02:55]}  d5 {[%clk 0:02:08]} 10. exd5 {[%clk 0:02:54]}  Qxd5 {[%clk 0:02:03]} 11. Nbd2 {[%clk 0:02:54]}  Bg4 {[%clk 0:01:56]} 12. h3 {[%clk 0:02:53]}  Bh5 {[%clk 0:01:54]} 13. Ne4 {[%clk 0:02:53]}  Rad8 {[%clk 0:01:46]} 14. Qe2 {[%clk 0:02:50]}  Nxe4 {[%clk 0:01:40]} 15. dxe4 {[%clk 0:02:51]}  Qe6 {[%clk 0:01:40]} 16. Ng5 {[%clk 0:02:43]}  Bxg5 {[%clk 0:01:32]} 17. Qxh5 {[%clk 0:02:43]}  Bxc1 {[%clk 0:01:33]} 18. Rexc1 {[%clk 0:02:41]}  Rd2 {[%clk 0:01:33]} 19. Bb3 {[%clk 0:02:39]}  Qf6 {[%clk 0:01:32]} 20. Qf5 {[%clk 0:02:27]}  Rxb2 {[%clk 0:01:26]} 21. Qxf6 {[%clk 0:02:26]}  gxf6 {[%clk 0:01:26]} 22. Rd1 {[%clk 0:02:26]}  Rd8 {[%clk 0:01:21]} 23. Bd5 {[%clk 0:02:24]}  Rd6 {[%clk 0:01:20]} 24. a4 {[%clk 0:02:24]}  Ne7 {[%clk 0:01:16]} 25. axb5 {[%clk 0:02:21]}  axb5 {[%clk 0:01:16]} 26. Ra7 {[%clk 0:02:15]}  Nxd5 {[%clk 0:01:11]} 27. exd5 {[%clk 0:01:59]}  c6 {[%clk 0:01:09]} 28. Ra8+ {[%clk 0:01:59]}  Kg7 {[%clk 0:01:09]} 29. Rd3 {[%clk 0:01:59]}  Rxd5 {[%clk 0:01:06]} 30. Rg3+ {[%clk 0:01:56]}  Kh6 {[%clk 0:01:06]} 31. Rf3 {[%clk 0:01:57]}  Rd1+ {[%clk 0:00:55]} 32. Kh2 {[%clk 0:01:57]}  Rd6 {[%clk 0:00:56]} 33. Rg8 {[%clk 0:01:54]}  Ra2 {[%clk 0:00:53]} 34. Rf5 {[%clk 0:01:52]} 1-0


[Site "https://www.chess.com"]

[Event "Titled Tuesday Blitz September 28 2021"]
[White "Rogac, Srdjan"]
[Black "Leitao, Rafael"]
[WhiteFideId "920576"]
[BlackFideId "2101246"]
[WhiteElo "2389"]
[BlackElo "2609"]
[Result "1/2-1/2"]
[Round "04"]
[TimeControl "180+1"]
[Date "2021.09.28"]
[WhiteClock "0:01:50"]
[BlackClock "0:00:23"]

1. d4 {[%clk 0:03:00]}  Nf6 {[%clk 0:02:59]} 2. Bf4 {[%clk 0:03:00]}  g6 {[%clk 0:02:58]} 3. Nc3 {[%clk 0:03:00]}  Bg7 {[%clk 0:02:56]} 4. Qd2 {[%clk 0:03:00]}  d6 {[%clk 0:02:53]} 5. e4 {[%clk 0:02:58]}  Nbd7 {[%clk 0:02:47]} 6. Bh6 {[%clk 0:02:57]}  Bxh6 {[%clk 0:02:44]} 7. Qxh6 {[%clk 0:02:56]}  e5 {[%clk 0:02:40]} 8. Nf3 {[%clk 0:02:56]}  exd4 {[%clk 0:02:35]} 9. Nxd4 {[%clk 0:02:55]}  Qe7 {[%clk 0:02:34]} 10. f3 {[%clk 0:02:50]}  Ne5 {[%clk 0:02:10]} 11. O-O-O {[%clk 0:02:49]}  Be6 {[%clk 0:02:08]} 12. Kb1 {[%clk 0:02:43]}  O-O-O {[%clk 0:01:42]} 13. Qe3 {[%clk 0:02:42]}  a6 {[%clk 0:01:30]} 14. Nxe6 {[%clk 0:02:38]}  Qxe6 {[%clk 0:01:20]} 15. Qa7 {[%clk 0:02:37]}  Nc6 {[%clk 0:01:13]} 16. Qa8+ {[%clk 0:02:31]}  Nb8 {[%clk 0:01:06]} 17. Qa7 {[%clk 0:02:30]}  d5 {[%clk 0:00:50]} 18. exd5 {[%clk 0:02:25]}  Nxd5 {[%clk 0:00:50]} 19. Nxd5 {[%clk 0:02:24]}  Rxd5 {[%clk 0:00:51]} 20. Bd3 {[%clk 0:02:24]}  Qd6 {[%clk 0:00:34]} 21. a3 {[%clk 0:02:16]}  Rd8 {[%clk 0:00:33]} 22. Rhe1 {[%clk 0:02:14]}  Qc5 {[%clk 0:00:25]} 23. Qxc5 {[%clk 0:02:13]}  Rxc5 {[%clk 0:00:25]} 24. Re7 {[%clk 0:02:09]}  Rf8 {[%clk 0:00:25]} 25. Rde1 {[%clk 0:02:08]}  Nc6 {[%clk 0:00:25]} 26. Re8+ {[%clk 0:02:07]}  Rxe8 {[%clk 0:00:25]} 27. Rxe8+ {[%clk 0:02:06]}  Kd7 {[%clk 0:00:26]} 28. Rh8 {[%clk 0:02:06]}  h5 {[%clk 0:00:25]} 29. h4 {[%clk 0:01:57]}  Ne5 {[%clk 0:00:25]} 30. Be4 {[%clk 0:01:56]}  c6 {[%clk 0:00:21]} 31. Rb8 {[%clk 0:01:51]}  Kc7 {[%clk 0:00:22]} 32. Re8 {[%clk 0:01:51]}  Kd7 {[%clk 0:00:22]} 33. Rb8 {[%clk 0:01:51]}  Kc7 {[%clk 0:00:22]} 34. Re8 {[%clk 0:01:50]}  Kd7 {[%clk 0:00:23]} 35. Rb8 {[%clk 0:01:50]} 1/2-1/2


[Site "https://www.chess.com"]

[Event "Titled Tuesday Blitz September 28 2021"]
[White "Romanchuk, Viktor"]
[Black "Harshavardhan G B"]
[WhiteFideId "14109271"]
[BlackFideId "25059009"]
[WhiteElo "2242"]
[BlackElo "1825"]
[Result "0-1"]
[Round "04"]
[TimeControl "180+1"]
[Date "2021.09.28"]
[WhiteClock "0:00:07"]
[BlackClock "0:00:22"]

1. d4 {[%clk 0:03:00]}  Nf6 {[%clk 0:02:55]} 2. c4 {[%clk 0:03:00]}  e6 {[%clk 0:02:55]} 3. Nc3 {[%clk 0:03:00]}  Bb4 {[%clk 0:02:55]} 4. e3 {[%clk 0:03:00]}  b6 {[%clk 0:02:53]} 5. Ne2 {[%clk 0:02:59]}  Bb7 {[%clk 0:02:53]} 6. a3 {[%clk 0:02:59]}  Bd6 {[%clk 0:02:53]} 7. d5 {[%clk 0:02:53]}  c6 {[%clk 0:02:52]} 8. e4 {[%clk 0:02:33]}  O-O {[%clk 0:02:48]} 9. g3 {[%clk 0:02:32]}  b5 {[%clk 0:02:46]} 10. dxe6 {[%clk 0:02:23]}  dxe6 {[%clk 0:02:43]} 11. Bg2 {[%clk 0:02:20]}  bxc4 {[%clk 0:02:43]} 12. O-O {[%clk 0:02:19]}  Na6 {[%clk 0:02:42]} 13. Qd4 {[%clk 0:02:06]}  e5 {[%clk 0:02:03]} 14. Qxc4 {[%clk 0:02:05]}  Nc5 {[%clk 0:02:04]} 15. Rd1 {[%clk 0:01:57]}  Ba6 {[%clk 0:02:02]} 16. Qa2 {[%clk 0:01:56]}  Nd3 {[%clk 0:01:58]} 17. b4 {[%clk 0:01:15]}  Ng4 {[%clk 0:01:52]} 18. Rf1 {[%clk 0:00:58]}  Ndxf2 {[%clk 0:01:00]} 19. h3 {[%clk 0:00:47]}  Qb6 {[%clk 0:00:58]} 20. hxg4 {[%clk 0:00:43]}  Nxg4+ {[%clk 0:00:51]} 21. Kh1 {[%clk 0:00:42]}  Rae8 {[%clk 0:00:44]} 22. b5 {[%clk 0:00:33]}  Bc8 {[%clk 0:00:33]} 23. Ng1 {[%clk 0:00:27]}  Bc5 {[%clk 0:00:29]} 24. Nh3 {[%clk 0:00:24]}  Re6 {[%clk 0:00:27]} 25. Na4 {[%clk 0:00:23]}  Qxb5 {[%clk 0:00:24]} 26. Nxc5 {[%clk 0:00:23]}  Qxc5 {[%clk 0:00:25]} 27. Bd2 {[%clk 0:00:18]}  Rg6 {[%clk 0:00:22]} 28. Rac1 {[%clk 0:00:17]}  Qb6 {[%clk 0:00:20]} 29. Bb4 {[%clk 0:00:15]}  Be6 {[%clk 0:00:20]} 30. Qe2 {[%clk 0:00:13]}  Re8 {[%clk 0:00:21]} 31. Bc5 {[%clk 0:00:13]}  Qb7 {[%clk 0:00:20]} 32. Rb1 {[%clk 0:00:11]}  Qc8 {[%clk 0:00:20]} 33. Bg1 {[%clk 0:00:10]}  Ne3 {[%clk 0:00:20]} 34. Bxe3 {[%clk 0:00:09]}  Bxh3 {[%clk 0:00:21]} 35. Bxh3 {[%clk 0:00:09]}  Qxh3+ {[%clk 0:00:22]} 36. Qh2 {[%clk 0:00:09]}  Qg4 {[%clk 0:00:22]} 37. Qg2 {[%clk 0:00:08]}  h5 {[%clk 0:00:22]} 38. Kg1 {[%clk 0:00:08]}  h4 {[%clk 0:00:22]} 39. Qf3 {[%clk 0:00:07]}  Qh3 {[%clk 0:00:22]} 40. Bf2 {[%clk 0:00:06]}  hxg3 {[%clk 0:00:21]} 41. Bxg3 {[%clk 0:00:06]}  Rxg3+ {[%clk 0:00:21]} 42. Qxg3 {[%clk 0:00:07]}  Qxg3+ {[%clk 0:00:22]} 0-1


[Site "https://www.chess.com"]

[Event "Titled Tuesday Blitz September 28 2021"]
[White "Salinas Herrera, Pablo"]
[Black "Wadsworth, Matthew J"]
[WhiteFideId "3407128"]
[BlackFideId "415804"]
[WhiteElo "2541"]
[BlackElo "2293"]
[Result "0-1"]
[Round "04"]
[TimeControl "180+1"]
[Date "2021.09.28"]
[WhiteClock "0:00:14"]
[BlackClock "0:00:10"]

1. e4 {[%clk 0:03:00]}  c5 {[%clk 0:02:59]} 2. Nf3 {[%clk 0:03:00]}  e6 {[%clk 0:03:00]} 3. d4 {[%clk 0:02:58]}  cxd4 {[%clk 0:03:01]} 4. Nxd4 {[%clk 0:02:58]}  Nc6 {[%clk 0:03:01]} 5. Nc3 {[%clk 0:02:57]}  Qc7 {[%clk 0:03:01]} 6. Be3 {[%clk 0:02:57]}  a6 {[%clk 0:03:01]} 7. Qf3 {[%clk 0:02:57]}  Ne5 {[%clk 0:03:01]} 8. Qg3 {[%clk 0:02:57]}  h5 {[%clk 0:03:02]} 9. O-O-O {[%clk 0:02:54]}  h4 {[%clk 0:02:54]} 10. Qh3 {[%clk 0:02:54]}  b5 {[%clk 0:02:53]} 11. f4 {[%clk 0:02:50]}  Nc4 {[%clk 0:02:53]} 12. Bxc4 {[%clk 0:02:50]}  Qxc4 {[%clk 0:02:54]} 13. f5 {[%clk 0:02:48]}  Bb7 {[%clk 0:02:51]} 14. fxe6 {[%clk 0:02:47]}  dxe6 {[%clk 0:02:49]} 15. Rhf1 {[%clk 0:02:44]}  Nf6 {[%clk 0:02:46]} 16. Nb3 {[%clk 0:02:29]}  Bb4 {[%clk 0:02:00]} 17. Bd4 {[%clk 0:02:23]}  Bxc3 {[%clk 0:01:43]} 18. Bxc3 {[%clk 0:02:23]}  Bxe4 {[%clk 0:01:40]} 19. Rf2 {[%clk 0:02:17]}  Bf5 {[%clk 0:01:26]} 20. Rxf5 {[%clk 0:01:44]}  exf5 {[%clk 0:01:25]} 21. Re1+ {[%clk 0:01:44]}  Kf8 {[%clk 0:01:16]} 22. Qxf5 {[%clk 0:01:44]}  Re8 {[%clk 0:01:12]} 23. Rd1 {[%clk 0:01:27]}  Rh5 {[%clk 0:01:08]} 24. Qf3 {[%clk 0:01:23]}  Qe4 {[%clk 0:00:57]} 25. Qf1 {[%clk 0:01:14]}  Rf5 {[%clk 0:00:55]} 26. Qh1 {[%clk 0:01:13]}  Rf2 {[%clk 0:00:50]} 27. Nd4 {[%clk 0:00:53]}  Nd5 {[%clk 0:00:40]} 28. Re1 {[%clk 0:00:44]}  Qxg2 {[%clk 0:00:30]} 29. Rxe8+ {[%clk 0:00:43]}  Kxe8 {[%clk 0:00:30]} 30. Qe1+ {[%clk 0:00:44]}  Kf8 {[%clk 0:00:30]} 31. Qe5 {[%clk 0:00:44]}  Rf1+ {[%clk 0:00:19]} 32. Be1 {[%clk 0:00:44]}  Kg8 {[%clk 0:00:11]} 33. Kd1 {[%clk 0:00:22]}  Qf2 {[%clk 0:00:11]} 34. Qe8+ {[%clk 0:00:20]}  Kh7 {[%clk 0:00:11]} 35. Qe4+ {[%clk 0:00:20]}  g6 {[%clk 0:00:10]} 36. h3 {[%clk 0:00:14]}  Ne3+ {[%clk 0:00:10]} 0-1


[Site "https://www.chess.com"]

[Event "Titled Tuesday Blitz September 28 2021"]
[White "Saya, Ethan"]
[Black "Bach, Ngoc Thuy Duong"]
[WhiteFideId "26095181"]
[BlackFideId "12408956"]
[WhiteElo "2217"]
[BlackElo "1896"]
[Result "0-1"]
[Round "04"]
[TimeControl "180+1"]
[Date "2021.09.28"]
[WhiteClock "0:01:19"]
[BlackClock "0:01:04"]

1. e4 {[%clk 0:03:00]}  c5 {[%clk 0:03:00]} 2. Nc3 {[%clk 0:03:00]}  d6 {[%clk 0:03:00]} 3. d4 {[%clk 0:03:00]}  cxd4 {[%clk 0:02:59]} 4. Qxd4 {[%clk 0:03:01]}  a6 {[%clk 0:02:58]} 5. b3 {[%clk 0:02:56]}  Nc6 {[%clk 0:02:56]} 6. Qd2 {[%clk 0:02:56]}  Nf6 {[%clk 0:02:52]} 7. Bb2 {[%clk 0:02:56]}  e6 {[%clk 0:02:51]} 8. O-O-O {[%clk 0:02:56]}  Be7 {[%clk 0:02:51]} 9. f3 {[%clk 0:02:55]}  Qc7 {[%clk 0:02:51]} 10. Kb1 {[%clk 0:02:52]}  b5 {[%clk 0:02:50]} 11. g4 {[%clk 0:02:48]}  Bb7 {[%clk 0:02:44]} 12. h4 {[%clk 0:02:40]}  Nd7 {[%clk 0:02:30]} 13. Bh3 {[%clk 0:02:17]}  Nc5 {[%clk 0:02:15]} 14. g5 {[%clk 0:02:13]}  b4 {[%clk 0:02:06]} 15. Nce2 {[%clk 0:02:12]}  e5 {[%clk 0:02:06]} 16. Ng3 {[%clk 0:02:04]}  g6 {[%clk 0:02:02]} 17. h5 {[%clk 0:02:02]}  a5 {[%clk 0:02:02]} 18. N1e2 {[%clk 0:01:59]}  a4 {[%clk 0:02:00]} 19. f4 {[%clk 0:01:49]}  Qa5 {[%clk 0:01:35]} 20. fxe5 {[%clk 0:01:43]}  axb3 {[%clk 0:01:22]} 21. axb3 {[%clk 0:01:43]}  Qa2+ {[%clk 0:01:13]} 22. Kc1 {[%clk 0:01:43]}  Nxe5 {[%clk 0:01:07]} 23. Qxb4 {[%clk 0:01:26]}  Bxg5+ {[%clk 0:01:06]} 24. Rd2 {[%clk 0:01:21]}  Ncd3+ {[%clk 0:01:05]} 25. cxd3 {[%clk 0:01:20]}  Nxd3+ {[%clk 0:01:05]} 26. Kd1 {[%clk 0:01:19]}  Nxb4 {[%clk 0:01:04]} 27. Bxh8 {[%clk 0:01:19]}  Qxd2# {[%clk 0:01:04]} 0-1


[Site "https://www.chess.com"]

[Event "Titled Tuesday Blitz September 28 2021"]
[White "Sethuraman, S.P."]
[Black "Avramidou, Anastasia"]
[WhiteFideId "5021596"]
[BlackFideId "4239873"]
[WhiteElo "2477"]
[BlackElo "2183"]
[Result "1-0"]
[Round "04"]
[TimeControl "180+1"]
[Date "2021.09.28"]
[WhiteClock "0:00:28"]
[BlackClock "0:00:02"]

1. d4 {[%clk 0:03:00]}  Nf6 {[%clk 0:02:59]} 2. c4 {[%clk 0:03:01]}  e6 {[%clk 0:02:57]} 3. Nf3 {[%clk 0:03:01]}  d5 {[%clk 0:02:49]} 4. Nc3 {[%clk 0:03:02]}  a6 {[%clk 0:02:46]} 5. c5 {[%clk 0:03:01]}  b6 {[%clk 0:02:43]} 6. cxb6 {[%clk 0:03:02]}  cxb6 {[%clk 0:02:43]} 7. Bf4 {[%clk 0:03:03]}  Bd6 {[%clk 0:02:43]} 8. Bxd6 {[%clk 0:03:03]}  Qxd6 {[%clk 0:02:44]} 9. e3 {[%clk 0:03:04]}  O-O {[%clk 0:02:44]} 10. Bd3 {[%clk 0:03:05]}  b5 {[%clk 0:02:42]} 11. O-O {[%clk 0:03:04]}  Nbd7 {[%clk 0:02:43]} 12. Rc1 {[%clk 0:03:03]}  Bb7 {[%clk 0:02:43]} 13. Bb1 {[%clk 0:02:43]}  Rfc8 {[%clk 0:02:41]} 14. Qd3 {[%clk 0:02:43]}  g6 {[%clk 0:02:38]} 15. Ne2 {[%clk 0:02:37]}  Rxc1 {[%clk 0:02:37]} 16. Rxc1 {[%clk 0:02:37]}  Rc8 {[%clk 0:02:38]} 17. Rxc8+ {[%clk 0:02:37]}  Bxc8 {[%clk 0:02:38]} 18. Qc3 {[%clk 0:02:35]}  Bb7 {[%clk 0:02:38]} 19. Ne5 {[%clk 0:02:35]}  b4 {[%clk 0:02:26]} 20. Qb3 {[%clk 0:02:35]}  a5 {[%clk 0:02:13]} 21. Nd3 {[%clk 0:02:29]}  Ba6 {[%clk 0:02:00]} 22. f3 {[%clk 0:02:28]}  Nb6 {[%clk 0:01:47]} 23. Qc2 {[%clk 0:02:28]}  Nfd7 {[%clk 0:01:37]} 24. b3 {[%clk 0:02:24]}  h5 {[%clk 0:01:33]} 25. Nef4 {[%clk 0:02:22]}  Kg7 {[%clk 0:01:25]} 26. Nc5 {[%clk 0:02:20]}  Nxc5 {[%clk 0:00:47]} 27. dxc5 {[%clk 0:02:11]}  Qe5 {[%clk 0:00:48]} 28. Qc1 {[%clk 0:02:08]}  Nc8 {[%clk 0:00:40]} 29. Kf2 {[%clk 0:02:07]}  d4 {[%clk 0:00:40]} 30. e4 {[%clk 0:02:03]}  Ne7 {[%clk 0:00:31]} 31. Bd3 {[%clk 0:02:02]}  Bxd3 {[%clk 0:00:24]} 32. Nxd3 {[%clk 0:02:02]}  Qxh2 {[%clk 0:00:24]} 33. Qc4 {[%clk 0:01:35]}  Nc6 {[%clk 0:00:20]} 34. Qc1 {[%clk 0:01:13]}  h4 {[%clk 0:00:19]} 35. Nf4 {[%clk 0:01:04]}  Qg3+ {[%clk 0:00:19]} 36. Kf1 {[%clk 0:01:03]}  Qh2 {[%clk 0:00:16]} 37. Nh3 {[%clk 0:00:59]}  Qg3 {[%clk 0:00:15]} 38. Qc4 {[%clk 0:00:54]}  Qe5 {[%clk 0:00:14]} 39. Nf2 {[%clk 0:00:52]}  Qg3 {[%clk 0:00:11]} 40. Qa6 {[%clk 0:00:48]}  Qc7 {[%clk 0:00:11]} 41. Qb6 {[%clk 0:00:47]}  Qxb6 {[%clk 0:00:10]} 42. cxb6 {[%clk 0:00:48]}  Kf6 {[%clk 0:00:11]} 43. Nd3 {[%clk 0:00:48]}  Ke7 {[%clk 0:00:12]} 44. e5 {[%clk 0:00:47]}  Kd7 {[%clk 0:00:12]} 45. f4 {[%clk 0:00:46]}  Kc8 {[%clk 0:00:11]} 46. Nc5 {[%clk 0:00:47]}  Nd8 {[%clk 0:00:11]} 47. Ke2 {[%clk 0:00:46]}  Nb7 {[%clk 0:00:11]} 48. Ne4 {[%clk 0:00:46]}  Kd7 {[%clk 0:00:11]} 49. Ng5 {[%clk 0:00:46]}  Nd8 {[%clk 0:00:09]} 50. Nf3 {[%clk 0:00:43]}  Kc6 {[%clk 0:00:09]} 51. Kd3 {[%clk 0:00:43]}  Kxb6 {[%clk 0:00:09]} 52. Kxd4 {[%clk 0:00:44]}  Nc6+ {[%clk 0:00:10]} 53. Ke4 {[%clk 0:00:41]}  Nd8 {[%clk 0:00:09]} 54. Nxh4 {[%clk 0:00:41]}  Kc5 {[%clk 0:00:09]} 55. Nf3 {[%clk 0:00:42]}  Kb5 {[%clk 0:00:08]} 56. Kd4 {[%clk 0:00:41]}  a4 {[%clk 0:00:08]} 57. Ng5 {[%clk 0:00:41]}  axb3 {[%clk 0:00:06]} 58. axb3 {[%clk 0:00:42]}  Nc6+ {[%clk 0:00:06]} 59. Kd3 {[%clk 0:00:42]}  Nd8 {[%clk 0:00:06]} 60. Ne4 {[%clk 0:00:43]}  Nb7 {[%clk 0:00:04]} 61. Kd4 {[%clk 0:00:42]}  Na5 {[%clk 0:00:04]} 62. Nd6+ {[%clk 0:00:40]}  Kc6 {[%clk 0:00:04]} 63. Nxf7 {[%clk 0:00:40]}  Nxb3+ {[%clk 0:00:04]} 64. Kc4 {[%clk 0:00:40]}  Nd2+ {[%clk 0:00:03]} 65. Kxb4 {[%clk 0:00:40]}  Kd5 {[%clk 0:00:04]} 66. Kc3 {[%clk 0:00:39]}  Nf1 {[%clk 0:00:03]} 67. Kd3 {[%clk 0:00:39]}  Ng3 {[%clk 0:00:03]} 68. Ng5 {[%clk 0:00:39]}  Nh5 {[%clk 0:00:03]} 69. Ke3 {[%clk 0:00:38]}  Ng7 {[%clk 0:00:04]} 70. g4 {[%clk 0:00:38]}  Ne8 {[%clk 0:00:04]} 71. Ne4 {[%clk 0:00:38]}  Ng7 {[%clk 0:00:04]} 72. Nf6+ {[%clk 0:00:38]}  Kc5 {[%clk 0:00:04]} 73. Ng8 {[%clk 0:00:37]}  Kc6 {[%clk 0:00:02]} 74. Ne7+ {[%clk 0:00:36]}  Kd7 {[%clk 0:00:03]} 75. Nxg6 {[%clk 0:00:37]}  Ke8 {[%clk 0:00:03]} 76. Ke4 {[%clk 0:00:37]}  Kf7 {[%clk 0:00:04]} 77. Nh4 {[%clk 0:00:37]}  Ne8 {[%clk 0:00:04]} 78. Nf3 {[%clk 0:00:37]}  Ke7 {[%clk 0:00:04]} 79. f5 {[%clk 0:00:37]}  Nc7 {[%clk 0:00:05]} 80. f6+ {[%clk 0:00:37]}  Kf7 {[%clk 0:00:06]} 81. g5 {[%clk 0:00:36]}  Kg6 {[%clk 0:00:06]} 82. Kf4 {[%clk 0:00:36]}  Nd5+ {[%clk 0:00:06]} 83. Ke4 {[%clk 0:00:36]}  Nc7 {[%clk 0:00:06]} 84. Kd4 {[%clk 0:00:37]}  Nd5 {[%clk 0:00:04]} 85. Kc5 {[%clk 0:00:37]}  Nf4 {[%clk 0:00:02]} 86. Kd6 {[%clk 0:00:37]}  Kf7 {[%clk 0:00:02]} 87. Nd4 {[%clk 0:00:36]}  Nd3 {[%clk 0:00:01]} 88. Nxe6 {[%clk 0:00:35]}  Nf2 {[%clk 0:00:01]} 89. Nf4 {[%clk 0:00:35]}  Ne4+ {[%clk 0:00:01]} 90. Kd7 {[%clk 0:00:35]}  Nxg5 {[%clk 0:00:02]} 91. Nd5 {[%clk 0:00:30]}  Kg6 {[%clk 0:00:02]} 92. e6 {[%clk 0:00:29]}  Ne4 {[%clk 0:00:01]} 93. e7 {[%clk 0:00:28]}  Nc5+ {[%clk 0:00:02]} 94. Kc6 {[%clk 0:00:28]} 1-0


[Site "https://www.chess.com"]

[Event "Titled Tuesday Blitz September 28 2021"]
[White "Shahade, Gregory"]
[Black "Nesterov, Arseniy"]
[WhiteFideId "2009064"]
[BlackFideId "24198455"]
[WhiteElo "2565"]
[BlackElo "2494"]
[Result "0-1"]
[Round "04"]
[TimeControl "180+1"]
[Date "2021.09.28"]
[WhiteClock "0:00:13"]
[BlackClock "0:00:06"]

1. e4 {[%clk 0:02:59]}  e5 {[%clk 0:02:59]} 2. Nf3 {[%clk 0:02:59]}  Nc6 {[%clk 0:03:00]} 3. Bb5 {[%clk 0:02:59]}  a6 {[%clk 0:03:00]} 4. Ba4 {[%clk 0:03:00]}  b5 {[%clk 0:03:01]} 5. Bb3 {[%clk 0:03:00]}  Na5 {[%clk 0:03:01]} 6. O-O {[%clk 0:02:57]}  d6 {[%clk 0:03:01]} 7. d4 {[%clk 0:02:46]}  exd4 {[%clk 0:03:02]} 8. Nxd4 {[%clk 0:02:46]}  Bb7 {[%clk 0:03:03]} 9. Bd2 {[%clk 0:02:45]}  Nxb3 {[%clk 0:02:57]} 10. Nxb3 {[%clk 0:02:44]}  Rb8 {[%clk 0:02:57]} 11. Re1 {[%clk 0:02:42]}  Nf6 {[%clk 0:02:56]} 12. Nc3 {[%clk 0:02:42]}  Be7 {[%clk 0:02:50]} 13. a4 {[%clk 0:02:41]}  b4 {[%clk 0:02:47]} 14. Nd5 {[%clk 0:02:41]}  Nxd5 {[%clk 0:02:35]} 15. exd5 {[%clk 0:02:41]}  Bxd5 {[%clk 0:02:03]} 16. Bg5 {[%clk 0:02:20]}  Be6 {[%clk 0:02:03]} 17. Bxe7 {[%clk 0:02:17]}  Qxe7 {[%clk 0:02:04]} 18. Nd4 {[%clk 0:02:16]}  Qf6 {[%clk 0:01:59]} 19. Nxe6 {[%clk 0:01:54]}  fxe6 {[%clk 0:01:57]} 20. Qh5+ {[%clk 0:01:47]}  Kd7 {[%clk 0:01:46]} 21. Re3 {[%clk 0:01:39]}  Rbf8 {[%clk 0:01:22]} 22. Rf1 {[%clk 0:01:30]}  Qf5 {[%clk 0:01:13]} 23. Qe2 {[%clk 0:01:22]}  a5 {[%clk 0:01:10]} 24. Re1 {[%clk 0:01:18]}  Rf6 {[%clk 0:01:06]} 25. Rf3 {[%clk 0:01:09]}  Qd5 {[%clk 0:01:02]} 26. Rxf6 {[%clk 0:01:05]}  gxf6 {[%clk 0:01:03]} 27. Qg4 {[%clk 0:01:05]}  Re8 {[%clk 0:00:47]} 28. Qg7+ {[%clk 0:01:05]}  Re7 {[%clk 0:00:48]} 29. Qxf6 {[%clk 0:01:05]}  Qc6 {[%clk 0:00:48]} 30. Qg5 {[%clk 0:00:47]}  d5 {[%clk 0:00:34]} 31. Qf4 {[%clk 0:00:34]}  Qxa4 {[%clk 0:00:26]} 32. c4 {[%clk 0:00:34]}  Qc6 {[%clk 0:00:14]} 33. cxd5 {[%clk 0:00:33]}  exd5 {[%clk 0:00:15]} 34. Qf5+ {[%clk 0:00:32]}  Kd8 {[%clk 0:00:08]} 35. Qg5 {[%clk 0:00:28]}  Qd6 {[%clk 0:00:06]} 36. Qg8+ {[%clk 0:00:24]}  Kd7 {[%clk 0:00:05]} 37. Qg4+ {[%clk 0:00:25]}  Kd8 {[%clk 0:00:05]} 38. Qg8+ {[%clk 0:00:25]}  Kd7 {[%clk 0:00:05]} 39. Rd1 {[%clk 0:00:21]}  c6 {[%clk 0:00:05]} 40. Qa8 {[%clk 0:00:21]}  Qc7 {[%clk 0:00:05]} 41. Qg8 {[%clk 0:00:19]}  Qb6 {[%clk 0:00:05]} 42. Qg4+ {[%clk 0:00:17]}  Kc7 {[%clk 0:00:05]} 43. Qf4+ {[%clk 0:00:18]}  Kb7 {[%clk 0:00:05]} 44. Qd6 {[%clk 0:00:18]}  Qc7 {[%clk 0:00:05]} 45. Qc5 {[%clk 0:00:18]}  Re4 {[%clk 0:00:05]} 46. Ra1 {[%clk 0:00:15]}  Rc4 {[%clk 0:00:04]} 47. Qf8 {[%clk 0:00:15]}  Qb6 {[%clk 0:00:04]} 48. Qg7+ {[%clk 0:00:14]}  Ka6 {[%clk 0:00:05]} 49. Qxh7 {[%clk 0:00:13]}  Qd4 {[%clk 0:00:05]} 50. Qc7 {[%clk 0:00:11]}  Qc5 {[%clk 0:00:05]} 51. Qc8+ {[%clk 0:00:12]}  Ka7 {[%clk 0:00:05]} 52. Qc7+ {[%clk 0:00:12]}  Ka6 {[%clk 0:00:05]} 53. Qc8+ {[%clk 0:00:12]}  Kb5 {[%clk 0:00:06]} 54. Qb7+ {[%clk 0:00:12]}  Qb6 {[%clk 0:00:06]} 55. Qa8 {[%clk 0:00:12]}  Rc2 {[%clk 0:00:05]} 56. b3 {[%clk 0:00:13]}  Qxf2+ {[%clk 0:00:05]} 57. Kh1 {[%clk 0:00:13]}  Qxg2# {[%clk 0:00:06]} 0-1


[Site "https://www.chess.com"]

[Event "Titled Tuesday Blitz September 28 2021"]
[White "Stribuk, Artiom"]
[Black "Di Nicolantonio, Lucas"]
[WhiteFideId "13515659"]
[BlackFideId "680460"]
[WhiteElo "2224"]
[BlackElo "2381"]
[Result "0-1"]
[Round "04"]
[TimeControl "180+1"]
[Date "2021.09.28"]
[WhiteClock "0:00:04"]
[BlackClock "0:00:18"]

1. d4 {[%clk 0:03:00]}  d5 {[%clk 0:02:57]} 2. c4 {[%clk 0:03:00]}  e6 {[%clk 0:02:57]} 3. Nf3 {[%clk 0:03:00]}  Nf6 {[%clk 0:02:57]} 4. g3 {[%clk 0:03:00]}  dxc4 {[%clk 0:02:56]} 5. Bg2 {[%clk 0:03:00]}  Nc6 {[%clk 0:02:57]} 6. O-O {[%clk 0:02:55]}  Rb8 {[%clk 0:02:56]} 7. e3 {[%clk 0:02:31]}  Be7 {[%clk 0:02:52]} 8. Nfd2 {[%clk 0:02:31]}  e5 {[%clk 0:02:50]} 9. Bxc6+ {[%clk 0:02:30]}  bxc6 {[%clk 0:02:50]} 10. dxe5 {[%clk 0:02:31]}  Ng4 {[%clk 0:02:48]} 11. Nxc4 {[%clk 0:02:31]}  h5 {[%clk 0:01:50]} 12. f3 {[%clk 0:01:31]}  Be6 {[%clk 0:01:38]} 13. Nbd2 {[%clk 0:01:26]}  Qd3 {[%clk 0:01:26]} 14. b3 {[%clk 0:01:09]}  h4 {[%clk 0:01:23]} 15. fxg4 {[%clk 0:01:00]}  hxg3 {[%clk 0:01:23]} 16. Nf3 {[%clk 0:00:44]}  Qe4 {[%clk 0:00:47]} 17. hxg3 {[%clk 0:00:36]}  Bxg4 {[%clk 0:00:37]} 18. Qe2 {[%clk 0:00:33]}  Qh7 {[%clk 0:00:28]} 19. Qh2 {[%clk 0:00:26]}  Bh3 {[%clk 0:00:23]} 20. Rf2 {[%clk 0:00:21]}  Qd3 {[%clk 0:00:22]} 21. Bd2 {[%clk 0:00:17]}  Rh6 {[%clk 0:00:20]} 22. e4 {[%clk 0:00:09]}  Rh7 {[%clk 0:00:18]} 23. Re1 {[%clk 0:00:10]}  Bf5 {[%clk 0:00:17]} 24. Qg2 {[%clk 0:00:09]}  Bxe4 {[%clk 0:00:18]} 25. Re3 {[%clk 0:00:08]}  Qd5 {[%clk 0:00:18]} 26. Be1 {[%clk 0:00:05]}  Bc5 {[%clk 0:00:18]} 27. Rfe2 {[%clk 0:00:04]}  Bxf3 {[%clk 0:00:17]} 28. Qxf3 {[%clk 0:00:04]}  Qxf3 {[%clk 0:00:18]} 0-1


[Site "https://www.chess.com"]